bitfinex-derivatives/quotes_SOLF0:USTF0_20250623
["timestamp","ask_amount","ask_price","bid_price","bid_amount"]
[1750699029162,64.56,134.01,133.93,2.3273]
[1750699029360,64.56,134.01,133.95,21.63273762]
[1750699029562,64.56,134.01,133.95,7.4617]
[1750699029966,64.56,134.01,133.93,21.63273762]
[1750699030961,7.4606,133.98,133.93,21.63273762]
[1750699031169,64.56,134.01,133.91,21.63273762]
[1750699031365,21.63273762,134.0,133.91,21.63273762]
[1750699031870,7.0729,133.99,133.91,21.63273762]
[1750699032062,7.0729,133.99,133.93,21.63273762]
[1750699032260,7.0729,133.99,133.95,7.4621]
[1750699032665,7.4609,133.98,133.95,7.4621]
[1750699032970,7.0729,133.99,133.93,7.4631]
[1750699033162,7.462,133.96,133.91,21.63273762]
[1750699033361,63.14,133.95,133.92,7.4638]
[1750699033556,63.14,133.95,133.86,21.63273762]
[1750699033962,63.14,133.95,133.91,7.4641]
[1750699034169,63.14,133.95,133.88,21.63273762]
[1750699034468,63.14,133.95,133.85,62.0]
[1750699034469,63.14,133.95,133.93,7.4633]
[1750699035163,63.14,133.95,133.9,21.63273762]
[1750699035369,7.4637,133.93,133.88,21.63273762]
[1750699035671,63.14,133.95,133.88,21.63273762]
[1750699036071,63.14,133.95,133.9,7.4649]
[1750699036466,7.4636,133.93,133.9,7.4649]
[1750699036670,63.14,133.95,133.89,7.4654]
[1750699036970,7.4643,133.92,133.89,7.4654]
[1750699037172,63.14,133.95,133.89,7.4654]
[1750699037366,666.11273762,133.97,133.91,21.63273762]
[1750699037367,63.16,133.96,133.91,21.63273762]
[1750699037567,63.16,133.96,133.93,21.63273762]
[1750699037876,63.16,133.96,133.85,14.9355]
[1750699037877,63.16,133.96,133.95,29.09493762]
[1750699038070,63.16,133.96,133.95,7.4622]
[1750699038474,63.16,133.96,133.92,21.63273762]
[1750699039675,63.16,133.96,133.91,21.63273762]
[1750699040272,21.63273762,133.95,133.85,21.63273762]
[1750699040666,190.45985397,133.94,133.83,26.29593762]
[1750699040872,63.16,133.96,133.87,21.63273762]
[1750699041076,7.4629,133.94,133.9,7.4647]
[1750699041378,63.16,133.95,133.85,21.63273762]
[1750699041572,7.4637,133.93,133.89,7.4651]
[1750699042073,7.4637,133.93,133.9,7.465]
[1750699042477,63.16,133.95,133.87,21.63273762]
[1750699042670,63.16,133.95,133.93,7.4629]
[1750699042871,63.16,133.95,133.91,21.63273762]
[1750699043679,63.16,133.95,133.94,7.4628]
[1750699046968,63.16,133.95,133.88,2.4439]
[1750699047172,63.16,133.95,133.88,21.63273762]
[1750699047382,63.16,133.95,133.91,7.4642]
[1750699047576,63.16,133.95,133.88,21.63273762]
[1750699048071,63.16,133.95,133.9,21.63273762]
[1750699048269,63.16,133.95,133.94,21.63273762]
[1750699048479,63.16,133.95,133.94,29.09553762]
[1750699049482,63.16,133.95,133.94,7.4628]
[1750699049679,63.16,133.95,133.89,21.63273762]
[1750699049976,246.9,133.95,133.85,21.63273762]
[1750699050279,63.16,133.94,133.89,21.63273762]
[1750699050683,63.16,133.94,133.93,7.4634]
[1750699051683,63.16,133.94,133.84,65.6039]
[1750699051983,63.16,133.94,133.87,21.63273762]
[1750699052184,63.16,133.94,133.9,7.4649]
[1750699052479,63.16,133.94,133.87,21.63273762]
[1750699053287,7.4636,133.93,133.89,7.4651]
[1750699053582,63.16,133.94,133.87,21.63273762]
[1750699053783,2.468,133.93,133.87,21.63273762]
[1750699054283,9.9317,133.93,133.89,7.4653]
[1750699054476,9.9317,133.93,133.87,21.63273762]
[1750699054676,2.468,133.93,133.87,21.63273762]
[1750699054982,2.468,133.93,133.86,21.63273762]
[1750699055487,2.4236,133.92,133.86,21.63273762]
[1750699055777,4.8672,133.92,133.84,21.63273762]
[1750699055970,4.8672,133.92,133.86,21.63273762]
[1750699056172,7.4651,133.9,133.87,7.4664]
[1750699056374,63.16,133.89,133.86,13.82513069]
[1750699056684,63.16,133.89,133.87,7.4664]
[1750699057287,63.16,133.89,133.86,13.82513069]
[1750699058287,63.16,133.89,133.83,4.6632]
[1750699058482,301.16,133.89,133.81,62.0]
[1750699058691,301.16,133.89,133.84,13.82513069]
[1750699058879,945.9,133.89,133.83,13.82513069]
[1750699059186,7.4667,133.87,133.83,13.82513069]
[1750699059385,945.9,133.89,133.83,13.82513069]
[1750699059590,7.4666,133.88,133.83,13.82513069]
[1750699060285,707.9,133.89,133.85,13.82513069]
[1750699060782,715.366,133.89,133.85,13.82513069]
[1750699060989,707.9,133.89,133.85,13.82513069]
[1750699061175,707.9,133.89,133.86,7.4671]
[1750699061489,707.9,133.89,133.85,13.82513069]
[1750699061788,707.9,133.89,133.87,21.29143069]
[1750699062285,707.9,133.89,133.88,7.4661]
[1750699062487,61.98,133.91,133.88,7.4661]
[1750699062787,61.98,133.91,133.89,13.82513069]
[1750699063177,69.4445,133.91,133.89,13.82513069]
[1750699063383,61.98,133.91,133.87,13.82513069]
[1750699063684,61.98,133.91,133.9,7.465]
[1750699063989,61.98,133.95,133.89,13.82513069]
[1750699064190,61.98,133.95,133.91,13.82513069]
[1750699065491,61.98,133.95,133.93,7.4631]
[1750699065688,61.98,133.95,133.91,13.82513069]
[1750699066391,61.98,133.95,133.87,2.3414]
[1750699066578,7.4634,133.93,133.89,7.4654]
[1750699066782,13.82513069,133.94,133.86,16.28503069]
[1750699067592,7.4639,133.93,133.89,7.4653]
[1750699068492,7.4639,133.92,133.89,7.4653]
[1750699068791,13.82513069,133.94,133.86,16.28503069]
[1750699069193,7.4636,133.93,133.89,7.465]
[1750699069393,61.98,133.95,133.86,16.28503069]
[1750699069597,75.80513069,133.95,133.88,13.82513069]
[1750699069891,7.4631,133.94,133.9,7.465]
[1750699070192,7.4635,133.93,133.9,7.4647]
[1750699070390,61.98,133.95,133.88,13.82513069]
[1750699070591,75.80513069,133.95,133.88,13.82513069]
[1750699070788,7.4632,133.94,133.88,13.82513069]
[1750699070990,61.98,133.95,133.88,13.82513069]
[1750699071290,21.28933069,133.92,133.84,13.82513069]
[1750699071494,13.82513069,133.92,133.84,13.82513069]
[1750699072394,13.82513069,133.92,133.86,13.82513069]
[1750699072395,7.4642,133.92,133.86,13.82513069]
[1750699072698,13.82513069,133.94,133.86,13.82513069]
[1750699072893,7.4643,133.92,133.88,7.4658]
[1750699073198,7.4643,133.92,133.86,13.82513069]
[1750699073493,13.82513069,133.94,133.86,13.82513069]
[1750699073793,61.98,133.95,133.86,13.82513069]
[1750699073992,238.0,133.96,133.88,13.82513069]
[1750699074195,61.98,133.94,133.9,13.82513069]
[1750699074495,61.98,133.94,133.89,13.82513069]
[1750699075098,61.98,133.94,133.92,7.4636]
[1750699075993,61.98,133.94,133.89,13.82513069]
[1750699076203,61.98,133.94,133.93,7.4633]
[1750699076999,61.98,133.94,133.93,21.28843069]
[1750699079987,61.98,133.94,133.93,7.4633]
[1750699080396,61.98,133.94,133.87,13.82513069]
[1750699080597,83.26813069,133.94,133.87,13.82513069]
[1750699080792,75.80513069,133.94,133.83,7.272]
[1750699081094,13.82513069,133.92,133.83,13.82513069]
[1750699081298,13.82513069,133.9,133.8,2.5141]
[1750699081487,61.96,133.89,133.82,13.82513069]
[1750699081889,61.96,133.89,133.84,13.82513069]
[1750699082090,7.4669,133.87,133.82,13.82513069]
[1750699082290,13.82513069,133.88,133.82,7.4693]
[1750699082500,13.82513069,133.88,133.8,16.33923069]
[1750699082699,7.4684,133.84,133.8,13.82513069]
[1750699082893,61.96,133.84,133.8,7.4702]
[1750699083093,69.4288,133.84,133.8,7.4702]
[1750699083403,61.96,133.84,133.79,7.4709]
[1750699083588,13.82513069,133.82,133.69,706.62]
[1750699083793,13.82513069,133.82,133.73,13.82513069]
[1750699083993,4.974,133.83,133.77,13.82513069]
[1750699084195,7.4698,133.82,133.77,13.82513069]
[1750699084398,18.79913069,133.83,133.75,13.82513069]
[1750699084601,18.79913069,133.83,133.77,21.29733069]
[1750699084800,18.79913069,133.83,133.77,13.82513069]
[1750699084801,7.4699,133.82,133.77,13.82513069]
[1750699085100,4.974,133.83,133.77,13.82513069]
[1750699085493,238.0,133.82,133.75,13.82513069]
[1750699085689,18.79913069,133.83,133.76,7.4725]
[1750699085905,7.4709,133.8,133.76,7.4725]
[1750699086092,61.98,133.79,133.73,13.82513069]
[1750699086492,75.80513069,133.79,133.71,13.82513069]
[1750699086698,2.3602,133.78,133.73,7.474]
[1750699087000,2.3602,133.78,133.71,13.82513069]
[1750699087298,62.0,133.79,133.77,13.82513069]
[1750699087498,62.0,133.79,133.68,13.82513069]
[1750699087694,62.0,133.79,133.73,13.82513069]
[1750699088302,62.0,133.79,133.77,13.82513069]
[1750699089202,62.0,133.79,133.68,13.82513069]
[1750699089402,62.0,133.79,133.73,13.82513069]
[1750699089802,62.0,133.79,133.72,21.30013069]
[1750699090107,62.0,133.79,133.72,13.82513069]
[1750699090503,62.0,133.79,133.74,13.82513069]
[1750699090804,644.84,133.81,133.78,13.82513069]
[1750699091003,705.7,133.81,133.78,13.82513069]
[1750699091200,705.7,133.81,133.76,13.82513069]
[1750699091905,705.7,133.81,133.77,13.82513069]
[1750699092911,238.0,133.82,133.77,13.82513069]
[1750699093211,238.0,133.86,133.81,13.82513069]
[1750699093412,60.86,133.88,133.85,13.82513069]
[1750699093704,60.86,133.88,133.79,62.0]
[1750699093913,7.4669,133.87,133.83,7.4686]
[1750699094103,60.86,133.88,133.83,7.4686]
[1750699094613,60.86,133.88,133.81,13.82513069]
[1750699094812,60.86,133.88,133.83,13.82513069]
[1750699095003,60.86,133.88,133.85,13.82513069]
[1750699095414,60.86,133.88,133.86,7.467]
[1750699095905,60.86,133.88,133.86,7.4673]
[1750699096213,60.86,133.88,133.85,13.82513069]
[1750699097814,13.82513069,133.87,133.8,13.82513069]
[1750699098015,74.68513069,133.88,133.8,13.82513069]
[1750699098310,7.4682,133.85,133.81,7.47]
[1750699098712,238.0,133.87,133.8,13.82513069]
[1750699098901,60.86,133.89,133.84,13.82513069]
[1750699099511,60.86,133.89,133.77,7.0709]
[1750699099702,60.86,133.89,133.82,13.82513069]
[1750699101015,60.86,133.89,133.78,62.0]
[1750699101310,60.86,133.89,133.84,7.468]
[1750699101510,60.86,133.89,133.82,13.82513069]
[1750699101819,7.4671,133.87,133.84,7.4682]
[1750699102314,60.86,133.89,133.84,13.82513069]
[1750699102811,60.86,133.89,133.78,62.0]
[1750699102812,60.86,133.89,133.88,7.4661]
[1750699103013,60.86,133.89,133.86,13.82513069]
[1750699103912,60.86,133.89,133.87,7.4667]
[1750699104106,60.86,133.89,133.86,13.82513069]
[1750699104508,60.86,133.89,133.88,7.4661]
[1750699104916,60.86,133.89,133.86,13.82513069]
[1750699105310,9.10386,133.95,133.88,13.82513069]
[1750699105613,9.10386,133.95,133.94,21.28793069]
[1750699105810,63.3417,134.0,133.96,13.82513069]
[1750699106308,63.3417,134.0,133.94,13.82513069]
[1750699106503,77.16683069,134.0,133.92,75.82513069]
[1750699106704,77.16683069,134.0,133.92,13.82513069]
[1750699107018,63.3417,134.0,133.92,13.82513069]
[1750699107313,63.3417,134.0,133.87,22.015]
[1750699107818,63.3417,134.0,133.93,21.28823069]
[1750699108017,63.3417,134.0,133.93,13.82513069]
[1750699109521,77.16683069,134.0,133.92,13.82513069]
[1750699109712,63.3417,134.0,133.94,13.82513069]
[1750699110920,7.4609,133.98,133.95,7.4622]
[1750699111118,63.3417,134.0,133.94,13.82513069]
[1750699111724,13.82513069,133.98,133.87,7.0817]
[1750699112024,238.0,133.97,133.91,7.464]
[1750699112520,7.4631,133.94,133.91,7.464]
[1750699112716,68.3031,133.94,133.91,7.464]
[1750699113024,60.84,133.94,133.91,13.82513069]
[1750699113522,7.4623,133.95,133.87,67.9217]
[1750699113721,60.84,133.98,133.92,13.82513069]
[1750699114023,60.84,133.98,133.92,7.4636]
[1750699114224,7.4624,133.95,133.92,7.4636]
[1750699114416,60.84,133.98,133.91,13.82513069]
[1750699115116,60.84,133.98,133.93,7.4632]
[1750699115315,7.4617,133.96,133.91,13.82513069]
[1750699115810,7.4623,133.95,133.92,7.4635]
[1750699116215,74.66513069,133.98,133.91,21.28923069]
[1750699116514,13.82513069,133.96,133.89,13.82513069]
[1750699117416,13.82513069,133.9,133.81,13.82513069]
[1750699117623,13.82513069,133.88,133.81,13.82513069]
[1750699117823,62.1713,133.87,133.83,7.4686]
[1750699118024,62.1713,133.87,133.81,13.82513069]
[1750699119015,7.4681,133.85,133.82,7.4691]
[1750699119318,62.1713,133.87,133.81,13.82513069]
[1750699119518,7.4673,133.86,133.83,7.4686]
[1750699119717,266.75956672,133.98,133.85,13.82513069]
[1750699120020,59.7,133.9,133.85,13.82513069]
[1750699120211,67.1655,133.9,133.86,7.4668]
[1750699120612,59.7,133.9,133.86,7.4668]
[1750699120826,59.7,133.9,133.87,7.4667]
[1750699121026,59.7,133.9,133.85,13.82513069]
[1750699121323,59.7,133.9,133.88,7.4658]
[1750699121525,59.7,133.9,133.87,13.82513069]
[1750699122128,59.7,133.9,133.85,13.82513069]
[1750699122522,67.1653,133.9,133.86,7.467]
[1750699122723,59.7,133.9,133.87,13.82513069]
[1750699123125,67.1651,133.9,133.87,21.29153069]
[1750699123323,59.7,133.9,133.87,13.82513069]
[1750699123828,67.1654,133.9,133.87,21.29173069]
[1750699124326,67.1653,133.9,133.87,13.82513069]
[1750699124727,67.1653,133.9,133.86,13.82513069]
[1750699124929,67.1653,133.9,133.87,7.4666]
[1750699125130,59.7,133.9,133.84,13.82513069]
[1750699125333,73.52513069,133.9,133.82,21.29433069]
[1750699125536,73.52513069,133.9,133.82,13.82513069]
[1750699125727,7.4679,133.85,133.82,13.82513069]
[1750699125927,59.72,133.84,133.83,7.4689]
[1750699126834,59.72,133.84,133.82,21.29433069]
[1750699127031,59.72,133.84,133.82,13.82513069]
[1750699127632,59.72,133.84,133.83,7.4689]
[1750699127834,59.72,133.84,133.82,13.82513069]
[1750699128036,59.72,133.84,133.78,4.7154]
[1750699128336,238.0,133.83,133.73,59.72]
[1750699128533,240.4811,133.83,133.77,13.82513069]
[1750699128737,238.0,133.82,133.79,7.4708]
[1750699129139,238.0,133.82,133.77,13.82513069]
[1750699129432,238.0,133.82,133.79,13.82513069]
[1750699129736,238.0,133.82,133.77,13.82513069]
[1750699129939,245.4699,133.82,133.78,7.4714]
[1750699130241,238.0,133.82,133.77,13.82513069]
[1750699130539,238.0,133.82,133.78,7.4714]
[1750699130936,7.4702,133.81,133.78,7.4714]
[1750699131839,245.4697,133.82,133.79,7.471]
[1750699132040,238.0,133.82,133.74,62.0]
[1750699132233,238.0,133.82,133.74,13.82513069]
[1750699133242,238.0,133.82,133.76,13.82513069]
[1750699133442,7.4704,133.81,133.78,7.4713]
[1750699133941,245.4698,133.82,133.78,7.4713]
[1750699134140,238.0,133.82,133.78,7.4713]
[1750699134343,251.82513069,133.82,133.74,13.82513069]
[1750699134543,7.4705,133.81,133.74,13.82513069]
[1750699134747,238.0,133.82,133.79,7.4708]
[1750699134950,238.0,133.82,133.7,181.6748]
[1750699135246,238.0,133.82,133.77,7.4719]
[1750699135744,7.4709,133.8,133.77,7.4719]
[1750699136042,59.74,133.79,133.71,62.0]
[1750699136243,7.4717,133.78,133.73,13.82513069]
[1750699136746,59.74,133.79,133.73,13.82513069]
[1750699137141,7.472,133.78,133.75,7.473]
[1750699137647,59.74,133.79,133.74,13.82513069]
[1750699137845,59.74,133.79,133.73,13.82513069]
[1750699138053,59.74,133.79,133.71,62.0]
[1750699138242,7.4726,133.77,133.73,7.4741]
[1750699138442,4.5882,133.78,133.72,13.82513069]
[1750699138642,18.41333069,133.78,133.7,13.82513069]
[1750699138842,18.41333069,133.78,133.69,2.4565]
[1750699139040,663.67333069,133.78,133.69,2.4565]
[1750699139348,7.473,133.76,133.7,13.82513069]
[1750699139549,663.67333069,133.78,133.65,59.76]
[1750699139550,663.67333069,133.78,133.66,2.472]
[1750699139852,13.82513069,133.76,133.69,13.82513069]
[1750699140145,2.4622,133.75,133.67,13.82513069]
[1750699140450,59.76,133.74,133.69,13.82513069]
[1750699140844,59.76,133.74,133.71,13.82513069]
[1750699141051,709.6082,133.78,133.73,13.82513069]
[1750699141247,705.02,133.78,133.68,13.82513069]
[1750699141453,705.02,133.78,133.75,13.82513069]
[1750699141750,59.76,133.83,133.77,13.82513069]
[1750699141954,59.76,133.83,133.8,13.82513069]
[1750699142251,59.76,133.83,133.82,7.4695]
[1750699143251,645.4,133.85,133.81,13.82513069]
[1750699143456,645.4,133.85,133.77,2.3318]
[1750699143457,645.4,133.85,133.82,13.82513069]
[1750699143653,645.4,133.85,133.84,21.29353069]
[1750699143849,59.76,133.87,133.84,13.82513069]
[1750699144154,59.76,133.87,133.85,7.4674]
[1750699144449,59.76,133.87,133.83,13.82513069]
[1750699145249,67.2268,133.87,133.83,21.29373069]
[1750699145457,59.76,133.87,133.85,13.82513069]
[1750699145655,59.76,133.87,133.86,7.4673]
[1750699146249,59.76,133.87,133.85,13.82513069]
[1750699146250,645.32,133.99,133.85,13.82513069]
[1750699146552,2.2849,133.97,133.92,13.82513069]
[1750699147149,4.7946,133.97,133.9,13.82513069]
[1750699147453,4.7946,133.97,133.88,13.82513069]
[1750699147454,197.19973069,133.97,133.88,13.82513069]
[1750699147653,197.19973069,133.97,133.86,64.4936]
[1750699147654,183.3746,133.97,133.86,64.4936]
[1750699147855,7.4631,133.94,133.9,21.28983069]
[1750699148056,58.64,133.94,133.9,13.82513069]
[1750699148444,7.4637,133.93,133.9,13.82513069]
[1750699148649,7.4637,133.93,133.88,13.82513069]
[1750699149346,7.4637,133.93,133.9,7.4649]
[1750699149549,58.64,133.94,133.86,13.82513069]
[1750699149861,2.3874,133.92,133.87,7.4664]
[1750699150156,2.3874,133.92,133.87,13.82513069]
[1750699150452,2.3874,133.92,133.8,7.0955]
[1750699150656,647.5382,133.91,133.8,7.0955]
[1750699150855,13.82513069,133.86,133.78,13.82513069]
[1750699151048,7.4687,133.84,133.8,7.4704]
[1750699151253,63.5135,133.85,133.8,7.4704]
[1750699151455,63.5135,133.85,133.81,13.82513069]
[1750699151660,58.64,133.85,133.81,13.82513069]
[1750699151864,58.64,133.85,133.83,13.82513069]
[1750699152256,58.64,133.85,133.84,7.4684]
[1750699152460,58.64,133.85,133.83,13.82513069]
[1750699152655,58.64,133.85,133.79,2.3993]
[1750699152963,58.64,133.85,133.82,13.82513069]
[1750699153258,58.64,133.85,133.84,21.29353069]
[1750699153456,7.2904,133.9,133.83,13.82513069]
[1750699153661,65.9304,133.9,133.83,13.82513069]
[1750699155055,13.82513069,133.89,133.79,2.3993]
[1750699155365,13.82513069,133.89,133.65,17.74756912]
[1750699155366,7.4706,133.8,133.75,7.473]
[1750699155559,58.64,133.79,133.75,21.32278993]
[1750699156061,58.64,133.79,133.75,13.84978993]
[1750699156263,58.64,133.79,133.7,62.0]
[1750699156264,58.64,133.79,133.73,21.70056441]
[1750699156557,66.1117,133.79,133.74,7.4736]
[1750699156767,80.34056441,133.79,133.7,62.0]
[1750699157154,7.4737,133.75,133.71,7.4754]
[1750699157466,58.64,133.74,133.69,4.8078]
[1750699157651,58.64,133.73,133.7,7.476]
[1750699157858,80.34056441,133.73,133.65,2.4441]
[1750699158061,7.4759,133.71,133.67,7.4777]
[1750699158260,21.70056441,133.72,133.63,139.44993034]
[1750699158469,21.70056441,133.72,133.63,161.15049475]
[1750699158663,29.17586441,133.72,133.63,161.15049475]
[1750699158962,703.72,133.73,133.65,21.70056441]
[1750699159164,711.1949,133.73,133.65,21.70056441]
[1750699159367,58.66,133.72,133.67,21.70056441]
[1750699159762,58.66,133.72,133.71,29.17616441]
[1750699160150,645.08,133.73,133.71,21.70056441]
[1750699160355,645.08,133.73,133.72,7.4751]
[1750699160966,58.66,133.78,133.71,21.70056441]
[1750699161162,58.66,133.78,133.67,58.66]
[1750699161163,58.66,133.78,133.75,21.70056441]
[1750699161360,58.66,133.78,133.74,7.4737]
[1750699161561,58.66,133.78,133.72,24.05726441]
[1750699161962,66.1322,133.78,133.73,7.4741]
[1750699162463,58.66,133.78,133.72,21.70056441]
[1750699162965,58.66,133.78,133.74,21.70056441]
[1750699163161,2.39,133.8,133.74,21.70056441]
[1750699163362,58.66,133.79,133.76,21.70056441]
[1750699164469,58.66,133.79,133.75,21.70056441]
[1750699164967,58.66,133.79,133.76,7.4727]
[1750699166469,58.66,133.79,133.75,21.70056441]
[1750699166855,58.66,133.79,133.76,7.4724]
[1750699167054,58.66,133.79,133.77,21.70056441]
[1750699167257,649.994,133.82,133.77,21.70056441]
[1750699167258,645.3,133.82,133.77,21.70056441]
[1750699167456,703.96,133.82,133.79,21.70056441]
[1750699167858,58.66,133.82,133.79,21.70056441]
[1750699168061,58.66,133.86,133.81,21.70056441]
[1750699168363,58.66,133.93,133.85,21.70056441]
[1750699168677,58.66,133.93,133.87,21.70056441]
[1750699168873,58.66,133.93,133.89,21.70056441]
[1750699169079,4.7483,133.95,133.91,21.70056441]
[1750699169372,58.66,133.97,133.93,21.70056441]
[1750699170469,58.66,133.97,133.96,7.4617]
[1750699170866,58.66,134.01,133.98,7.4602]
[1750699171070,58.66,134.01,133.98,21.70056441]
[1750699171670,58.66,134.01,133.93,66.6373]
[1750699171874,58.66,134.01,133.97,21.70056441]
[1750699172275,58.66,134.01,133.99,21.70056441]
[1750699173374,58.66,134.01,133.99,29.16006441]
[1750699173569,58.66,134.01,133.99,21.70056441]
[1750699173973,238.0,134.03,133.94,2.3154]
[1750699174273,238.0,134.03,134.0,21.70056441]
[1750699174468,703.96,134.05,134.01,7.4585]
[1750699174677,703.96,134.05,134.0,21.70056441]
[1750699174866,703.96,134.05,134.02,21.70056441]
[1750699175067,703.96,134.05,134.02,29.15856441]
[1750699175267,703.96,134.05,134.0,21.70056441]
[1750699175971,703.96,134.05,133.93,4.6373]
[1750699175972,703.96,134.05,133.95,21.70056441]
[1750699176172,21.70056441,134.04,133.95,21.70056441]
[1750699176365,21.70056441,134.02,133.88,236.14]
[1750699176672,21.70056441,134.0,133.9,21.70056441]
[1750699176974,63.3468,133.99,133.94,21.70056441]
[1750699177278,70.8073,133.99,133.94,21.70056441]
[1750699177473,63.3468,133.99,133.93,21.70056441]
[1750699177774,63.3468,133.99,133.95,7.4619]
[1750699178374,63.3468,133.99,133.93,21.70056441]
[1750699178882,57.7,134.02,133.99,7.4597]
[1750699179080,57.7,134.02,133.97,21.70056441]
[1750699179572,57.7,134.02,133.92,21.70056441]
[1750699179762,57.7,134.02,133.94,21.70056441]
[1750699179763,234.66,134.02,133.94,21.70056441]
[1750699180368,234.66,134.02,133.96,21.70056441]
[1750699180562,57.7,134.02,133.96,21.70056441]
[1750699180883,57.68,134.06,134.0,21.70056441]
[1750699181081,60.0721,134.1,134.04,21.70056441]
[1750699181272,60.0721,134.1,134.01,21.70056441]
[1750699181273,60.0721,134.1,134.06,21.70056441]
[1750699181874,60.0721,134.1,134.04,21.70056441]
[1750699182488,60.0721,134.1,134.05,7.4567]
[1750699182673,60.0721,134.1,134.04,21.70056441]
[1750699182869,60.0721,134.1,134.02,21.70056441]
[1750699183075,60.0721,134.1,134.01,21.70056441]
[1750699183380,81.77266441,134.1,134.01,21.70056441]
[1750699183584,81.77266441,134.1,133.99,21.70056441]
[1750699183585,176.72,134.09,133.99,21.70056441]
[1750699183778,176.72,134.09,134.01,21.70056441]
[1750699184677,60.0721,134.1,134.03,21.70056441]
[1750699184879,57.68,134.09,134.05,21.70056441]
[1750699185080,57.68,134.09,134.07,21.70056441]
[1750699185382,57.68,134.09,134.06,21.70056441]
[1750699185688,57.68,134.09,134.01,21.70056441]
[1750699185981,57.68,134.09,134.03,21.70056441]
[1750699186187,57.68,134.09,134.03,29.15806441]
[1750699186385,57.68,134.09,134.03,21.70056441]
[1750699186779,57.68,134.09,134.01,21.70056441]
[1750699187488,7.4559,134.07,134.03,7.4575]
[1750699187886,57.68,134.09,133.98,2.436]
[1750699188075,7.4565,134.06,134.02,7.4579]
[1750699188272,57.68,134.09,134.0,21.70056441]
[1750699188472,57.68,134.09,133.98,2.436]
[1750699188676,7.4564,134.06,133.99,21.70056441]
[1750699189283,7.4564,134.06,134.03,7.4574]
[1750699189482,7.4557,134.07,134.03,7.4574]
[1750699189877,4.594,134.08,134.03,7.4574]
[1750699190075,7.4561,134.06,134.03,7.4574]
[1750699190378,4.594,134.08,134.04,7.4572]
[1750699190882,4.594,134.08,134.01,21.70056441]
[1750699192094,4.594,134.08,134.0,21.70056441]
[1750699192283,4.594,134.08,133.98,2.436]
[1750699192284,4.594,134.08,134.02,21.70056441]
[1750699192487,57.68,134.09,134.02,21.70056441]
[1750699192689,57.68,134.09,134.04,21.70056441]
[1750699193386,57.68,134.09,134.08,7.455]
[1750699194380,57.68,134.09,134.05,21.70056441]
[1750699194987,57.68,134.09,134.08,7.455]
[1750699195204,57.68,134.09,134.0,14.9187]
[1750699195387,57.68,134.09,134.02,21.70056441]
[1750699195887,79.38056441,134.09,134.0,7.4593]
[1750699196192,7.4569,134.05,133.98,24.13656441]
[1750699196394,57.64,134.04,134.0,7.4591]
[1750699196587,57.64,134.04,133.98,24.13656441]
[1750699196990,57.64,134.04,134.01,7.4586]
[1750699197190,57.64,134.04,133.98,24.13656441]
[1750699197596,57.64,134.04,134.01,7.4585]
[1750699197995,57.64,134.04,133.98,24.13656441]
[1750699198996,57.64,134.04,133.96,21.70056441]
[1750699199198,7.4587,134.02,133.96,21.70056441]
[1750699199496,7.4587,134.02,133.98,7.4603]
[1750699199699,70.0542,134.04,133.96,21.70056441]
[1750699199993,62.5967,134.04,133.96,21.70056441]
[1750699200190,62.5967,134.04,133.98,21.70056441]
[1750699200390,57.64,134.04,133.98,21.70056441]
[1750699200787,644.12,134.05,134.0,21.70056441]
[1750699200994,60.0961,134.07,134.02,21.70056441]
[1750699201390,57.64,134.07,134.02,21.70056441]
[1750699201598,21.70056441,134.05,133.94,2.2801]